fUST/lending_fUST_20240904
["ID","MTS","AMOUNT","RATE_DAILY","PERIOD"]
[337153856,1725456748312,-500.0,0.00029589,2]
[337153857,1725456748322,-500.0,0.00029589,2]
[337153858,1725456748331,-2721.54,0.00029589,2]
[337153859,1725456748340,-676.43,0.00029589,2]
[337153860,1725456748350,-632.09,0.00029589,2]
[337153861,1725456748360,-640.28118528,0.00029589,2]
[337153862,1725456748369,-500.0,0.00029589,2]
[337153863,1725456748378,-500.0,0.00029589,2]
[337153864,1725456748388,-500.0,0.00029589,2]
[337153865,1725456748397,-500.0,0.00029589,2]
[337153866,1725456748406,-500.0,0.00029589,2]
[337153867,1725456748416,-500.0,0.00029589,2]
[337153868,1725456748424,-500.0,0.00029589,2]
[337153869,1725456748434,-500.0,0.00029589,2]
[337153870,1725456748443,-500.0,0.00029589,2]
[337153871,1725456748453,-500.0,0.00029589,2]
[337153872,1725456748462,-500.0,0.00029589,2]
[337153873,1725456748474,-500.0,0.00029589,2]
[337153874,1725456748483,-504.86,0.00029589,2]
[337153875,1725456748492,-604.04,0.00029589,2]
[337153876,1725456748501,-500.0,0.00029589,2]
[337153877,1725456748510,-500.0,0.00029589,2]
[337153878,1725456748519,-500.0,0.00029589,2]
[337153879,1725456748528,-500.0,0.00029589,2]
[337153880,1725456748538,-500.0,0.00029589,2]
[337153881,1725456748547,-500.0,0.00029589,2]
[337153882,1725456748556,-2611.56,0.00029589,2]
[337153883,1725456748565,-500.0,0.00029589,2]
[337153884,1725456748575,-551.24329638,0.00029589,2]
[337153885,1725456748584,-697.13,0.00029589,2]
[337153886,1725456748593,-500.0,0.00029589,2]
[337153887,1725456748603,-303.38,0.00029589,2]
[337153888,1725456748612,-500.0,0.00029589,2]
[337153889,1725456748626,-854.77,0.00029589,2]
[337153890,1725456748635,-600.81,0.00029589,2]
[337153891,1725456748644,-500.0,0.00029589,2]
[337153892,1725456748654,-335.64260759,0.00029589,2]
[337153893,1725456748663,-749.45,0.00029589,2]
[337153894,1725456748673,-500.0,0.00029589,2]
[337153895,1725456748682,-500.0,0.00029589,2]
[337153896,1725456748691,-500.0,0.00029589,2]
[337153897,1725456748703,-500.0,0.00029589,2]
[337153898,1725456748713,-500.0,0.00029589,2]
[337153899,1725456748724,-500.0,0.00029589,2]
[337153900,1725456748733,-590.0,0.00029589,2]
[337153901,1725456748742,-500.0,0.00029589,2]
[337153902,1725456748751,-500.0,0.00029589,2]
[337153903,1725456748760,-516.57498037,0.00029589,2]
[337153904,1725456748770,-500.0,0.00029589,2]
[337153905,1725456748780,-500.0,0.00029589,2]
[337153906,1725456748789,-500.0,0.00029589,2]
[337153907,1725456748798,-500.0,0.00029589,2]
[337153908,1725456748807,-500.0,0.00029589,2]
[337153909,1725456748817,-500.0,0.00029589,2]
[337153910,1725456748827,-510.61,0.00029589,2]
[337153911,1725456748836,-500.0,0.00029589,2]
[337153912,1725456748846,-500.0,0.00029589,2]
[337153913,1725456748855,-500.0,0.00029589,2]
[337153914,1725456748865,-500.0,0.00029589,2]
[337153915,1725456748874,-500.0,0.00029589,2]
[337153916,1725456748884,-500.0,0.00029589,2]
[337153917,1725456748893,-500.0,0.00029589,2]
[337153918,1725456748903,-500.0,0.00029589,2]
[337153919,1725456748912,-500.0,0.00029589,2]
[337153920,1725456748922,-500.0,0.00029589,2]
[337153921,1725456748931,-500.0,0.00029589,2]
[337153922,1725456748940,-500.0,0.00029589,2]
[337153923,1725456748950,-500.0,0.00029589,2]
[337153924,1725456748959,-500.0,0.00029589,2]
[337153925,1725456748971,-500.0,0.00029589,2]
[337153926,1725456748980,-500.0,0.00029589,2]
[337153927,1725456748990,-500.0,0.00029589,2]
[337153928,1725456748999,-500.0,0.00029589,2]
[337153929,1725456749009,-500.0,0.00029589,2]
[337153930,1725456749020,-887.25,0.00029589,2]
[337153931,1725456749029,-500.0,0.00029589,2]
[337153932,1725456749038,-500.0,0.00029589,2]
[337153933,1725456749048,-500.0,0.00029589,2]
[337153934,1725456749058,-500.0,0.00029589,2]
[337153935,1725456749067,-758.9,0.00029589,2]
[337153936,1725456749077,-500.0,0.00029589,2]
[337153937,1725456749086,-500.0,0.00029589,2]
[337153938,1725456749096,-500.0,0.00029589,2]
[337153939,1725456749106,-500.0,0.00029589,2]
[337153940,1725456749116,-500.0,0.00029589,2]
[337153941,1725456749126,-500.0,0.00029589,2]
[337153942,1725456749137,-500.0,0.00029589,2]
[337153943,1725456749146,-500.0,0.00029589,2]
[337153944,1725456749155,-279.09,0.00029589,2]
[337153945,1725456749165,-500.0,0.00029589,2]
[337153946,1725456749175,-631.60734866,0.00029589,2]
[337153947,1725456749184,-500.0,0.00029589,2]
[337153948,1725456749194,-500.0,0.00029589,2]
[337153949,1725456749203,-500.0,0.00029589,2]
[337153950,1725456749212,-500.0,0.00029589,2]
[337153951,1725456749228,-500.0,0.00029589,2]
[337153952,1725456749237,-500.0,0.00029589,2]
[337153953,1725456749247,-500.0,0.00029589,2]
[337153954,1725456749256,-500.0,0.00029589,2]
[337153955,1725456749266,-247.1675163,0.00029589,2]
[337153956,1725456749275,-500.0,0.00029589,2]
[337153957,1725456749285,-500.0,0.00029589,2]
[337153958,1725456749294,-500.0,0.00029589,2]
[337153959,1725456749304,-500.0,0.00029589,2]
[337153960,1725456749313,-500.0,0.00029589,2]
[337153961,1725456749324,-482.87,0.00029589,2]
[337153962,1725456749334,-500.0,0.00029589,2]
[337153963,1725456749344,-500.0,0.00029589,2]
[337153964,1725456749353,-500.0,0.00029589,2]
[337153965,1725456749362,-945.1,0.00029589,2]
[337153966,1725456749372,-500.0,0.00029589,2]
[337153967,1725456749382,-500.0,0.00029589,2]
[337153968,1725456749392,-500.0,0.00029589,2]
[337153969,1725456749402,-1029.49,0.00029589,2]
[337153970,1725456749413,-500.0,0.00029589,2]
[337153971,1725456749423,-500.0,0.00029589,2]
[337153972,1725456749433,-515.78854732,0.00029589,2]
[337153973,1725456749443,-770.95,0.00029589,2]
[337153974,1725456749452,-500.0,0.00029589,2]
[337153975,1725456749462,-500.0,0.00029589,2]
[337153976,1725456749476,-500.0,0.00029589,2]
[337153977,1725456749486,-500.0,0.00029589,2]
[337153978,1725456749496,-566.62,0.00029589,2]
[337153979,1725456749506,-657.65,0.00029589,2]
[337153980,1725456749515,-500.0,0.00029589,2]
[337153981,1725456749525,-500.0,0.00029589,2]
[337153982,1725456749534,-500.0,0.00029589,2]
[337153983,1725456749544,-500.0,0.00029589,2]
[337153984,1725456749553,-500.0,0.00029589,2]
[337153985,1725456749563,-500.0,0.00029589,2]
[337153986,1725456749573,-863.47,0.00029589,2]
[337153987,1725456749583,-500.0,0.00029589,2]
[337153988,1725456749593,-500.0,0.00029589,2]
[337153989,1725456749602,-500.0,0.00029589,2]
[337153990,1725456749613,-500.0,0.00029589,2]
[337153991,1725456749622,-500.0,0.00029589,2]
[337153992,1725456749635,-614.65,0.00029589,2]
[337153993,1725456749644,-500.0,0.00029589,2]
[337153994,1725456749654,-500.0,0.00029589,2]
[337153995,1725456749664,-500.0,0.00029589,2]
[337153996,1725456749675,-500.0,0.00029589,2]
[337153997,1725456749684,-500.0,0.00029589,2]
[337153998,1725456749694,-500.0,0.00029589,2]
[337153999,1725456749706,-500.0,0.00029589,2]
[337154000,1725456749720,-500.0,0.00029589,2]
[337154001,1725456749730,-500.0,0.00029589,2]
[337154002,1725456749740,-500.0,0.00029589,2]
[337154003,1725456749749,-648.68,0.00029589,2]
[337154004,1725456749759,-500.0,0.00029589,2]
[337154005,1725456749769,-500.0,0.00029589,2]
[337154006,1725456749779,-500.0,0.00029589,2]
[337154007,1725456749789,-500.0,0.00029589,2]
[337154008,1725456749799,-701.69,0.00029589,2]
[337154009,1725456749809,-500.0,0.00029589,2]
[337154010,1725456749819,-500.0,0.00029589,2]
[337154011,1725456749829,-500.0,0.00029589,2]
[337154012,1725456749839,-500.0,0.00029589,2]
[337154013,1725456749849,-500.0,0.00029589,2]
[337154014,1725456749859,-500.0,0.00029589,2]
[337154015,1725456749868,-500.0,0.00029589,2]
[337154016,1725456749878,-500.0,0.00029589,2]
[337154017,1725456749888,-500.0,0.00029589,2]
[337154018,1725456749898,-500.0,0.00029589,2]
[337154019,1725456749908,-500.0,0.00029589,2]
[337154020,1725456749917,-500.0,0.00029589,2]
[337154021,1725456749927,-500.0,0.00029589,2]
[337154022,1725456749937,-500.0,0.00029589,2]
[337154023,1725456749946,-578.02,0.00029589,2]
[337154024,1725456749956,-500.0,0.00029589,2]
[337154025,1725456749969,-465.6,0.00029589,2]
[337154026,1725456749979,-500.0,0.00029589,2]
[337154027,1725456749988,-500.0,0.00029589,2]
[337154028,1725456749997,-666.45,0.00029589,2]
[337154029,1725456750007,-500.0,0.00029589,2]
[337154030,1725456750016,-522.06060268,0.00029589,2]
[337154031,1725456750026,-500.0,0.00029589,2]
[337154032,1725456750035,-500.0,0.00029589,2]
[337154033,1725456750045,-623.51,0.00029589,2]
[337154034,1725456750054,-674.09,0.00029589,2]
[337154035,1725456750064,-574.79,0.00029589,2]
[337154036,1725456750074,-500.0,0.00029589,2]
[337154037,1725456750083,-500.0,0.00029589,2]
[337154038,1725456750093,-604.6,0.00029589,2]
[337154039,1725456750102,-500.0,0.00029589,2]
[337154040,1725456750112,-500.0,0.00029589,2]
[337154041,1725456750122,-500.0,0.00029589,2]
[337154042,1725456750133,-500.0,0.00029589,2]
[337154043,1725456750143,-500.0,0.00029589,2]
[337154044,1725456750153,-500.0,0.00029589,2]
[337154045,1725456750163,-500.0,0.00029589,2]
[337154046,1725456750173,-500.0,0.00029589,2]
[337154047,1725456750182,-500.0,0.00029589,2]
[337154048,1725456750192,-500.0,0.00029589,2]
[337154049,1725456750203,-500.0,0.00029589,2]
[337154050,1725456750213,-500.0,0.00029589,2]
[337154051,1725456750228,-500.0,0.00029589,2]
[337154052,1725456750238,-500.0,0.00029589,2]
[337154053,1725456750248,-500.0,0.00029589,2]
[337154054,1725456750257,-500.0,0.00029589,2]
[337154055,1725456750267,-500.0,0.00029589,2]
[337154056,1725456750276,-500.0,0.00029589,2]
[337154057,1725456750286,-369.10333466,0.00029589,2]
[337154058,1725456750296,-500.0,0.00029589,2]
[337154059,1725456750305,-500.0,0.00029589,2]
[337154060,1725456750315,-500.0,0.00029589,2]
[337154061,1725456750325,-500.0,0.00029589,2]
[337154062,1725456750335,-500.0,0.00029589,2]
[337154063,1725456750345,-500.0,0.00029589,2]
[337154064,1725456750355,-500.0,0.00029589,2]
[337154065,1725456750366,-500.0,0.00029589,2]
[337154066,1725456750376,-500.0,0.00029589,2]
[337154067,1725456750385,-500.0,0.00029589,2]
[337154068,1725456750395,-847.93,0.00029589,2]
[337154069,1725456750405,-500.0,0.00029589,2]
[337154070,1725456750416,-500.0,0.00029589,2]
[337154071,1725456750425,-870.2,0.00029589,2]
[337154072,1725456750436,-500.0,0.00029589,2]
[337154073,1725456750445,-500.0,0.00029589,2]
[337154074,1725456750455,-368.73041689,0.00029589,2]
[337154075,1725456750469,-500.0,0.00029589,2]
[337154076,1725456750478,-1991.87,0.00029589,2]
[337154077,1725456750488,-382.62,0.00029589,2]
[337154078,1725456750498,-500.0,0.00029589,2]
[337154079,1725456750508,-899.14,0.00029589,2]
[337154080,1725456750517,-613.99,0.00029589,2]
[337154081,1725456750527,-762.62,0.00029589,2]
[337154082,1725456750537,-500.0,0.00029589,2]
[337154083,1725456750547,-500.0,0.00029589,2]
[337154084,1725456750557,-732.83,0.00029589,2]
[337154085,1725456750566,-500.0,0.00029589,2]
[337154086,1725456750577,-500.0,0.00029589,2]
[337154087,1725456750587,-500.0,0.00029589,2]
[337154088,1725456750597,-500.0,0.00029589,2]
[337154089,1725456750606,-500.0,0.00029589,2]
[337154090,1725456750619,-500.0,0.00029589,2]
[337154091,1725456750628,-500.0,0.00029589,2]
[337154092,1725456750638,-500.0,0.00029589,2]
[337154093,1725456750648,-242.95672427,0.00029589,2]
[337154094,1725456750659,-500.0,0.00029589,2]
[337154095,1725456750668,-500.0,0.00029589,2]
[337154096,1725456750678,-500.0,0.00029589,2]
[337154097,1725456750687,-500.0,0.00029589,2]
[337154098,1725456750700,-500.0,0.00029589,2]
[337154099,1725456750710,-500.0,0.00029589,2]
[337154100,1725456750722,-407.73,0.00029589,2]
[337154101,1725456750731,-500.0,0.00029589,2]
[337154102,1725456750741,-500.0,0.00029589,2]
[337154103,1725456750750,-649.5305819,0.00029589,2]
[337154104,1725456750760,-500.0,0.00029589,2]
[337154105,1725456750769,-500.0,0.00029589,2]
[337154106,1725456750779,-500.0,0.00029589,2]
[337154107,1725456750789,-2003.71,0.00029589,2]
[337154108,1725456750799,-500.0,0.00029589,2]
[337154109,1725456750809,-500.0,0.00029589,2]
[337154110,1725456750819,-500.0,0.00029589,2]
[337154111,1725456750829,-1205.94,0.00029589,2]
[337154112,1725456750840,-500.0,0.00029589,2]
[337154113,1725456750850,-500.0,0.00029589,2]
[337154114,1725456750860,-526.12,0.00029589,2]
[337154115,1725456750870,-518.5,0.00029589,2]
[337154116,1725456750881,-500.0,0.00029589,2]
[337154117,1725456750891,-500.0,0.00029589,2]
[337154118,1725456750900,-500.0,0.00029589,2]
[337154119,1725456750910,-500.0,0.00029589,2]
[337154120,1725456750919,-500.0,0.00029589,2]
[337154121,1725456750929,-500.0,0.00029589,2]
[337154122,1725456750939,-500.0,0.00029589,2]
[337154123,1725456750949,-912.72,0.00029589,2]
[337154124,1725456750959,-380.12,0.00029589,2]
[337154125,1725456750971,-318.76,0.00029589,2]
[337154126,1725456750981,-500.0,0.00029589,2]
[337154127,1725456750991,-500.0,0.00029589,2]
[337154128,1725456751001,-621.24,0.00029589,2]
[337154129,1725456751011,-1228.0,0.00029589,2]
[337154130,1725456751021,-500.0,0.00029589,2]
[337154131,1725456751031,-500.0,0.00029589,2]
[337154132,1725456751042,-954.3,0.00029589,2]
[337154133,1725456751052,-1417.83,0.00029589,2]
[337154134,1725456751061,-1493.78,0.00029589,2]
[337154135,1725456751071,-591.49,0.00029589,2]
[337154136,1725456751082,-711.92,0.00029589,2]
[337154137,1725456751093,-1275.87,0.00029589,2]
[337154138,1725456751102,-2668.56,0.00029589,2]
[337154139,1725456751112,-1035.91,0.00029589,2]
[337154140,1725456751123,-1248.71,0.00029589,2]
[337154141,1725456751133,-967.05,0.00029589,2]
[337154142,1725456751143,-2693.21,0.00029589,2]
[337154143,1725456751153,-1338.09,0.00029589,2]
[337154144,1725456751163,-1107.58,0.00029589,2]
[337154145,1725456751173,-500.0,0.00029589,2]
[337154146,1725456751182,-4246.41,0.00029589,2]
[337154147,1725456751192,-1107.23,0.00029589,2]
[337154148,1725456751203,-1365.5,0.00029589,2]
[337154149,1725456751212,-1532.75,0.00029589,2]
[337154150,1725456751224,-1527.6,0.00029589,2]
[337154151,1725456751234,-1066.88,0.00029589,2]
[337154152,1725456751244,-1660.38,0.00029589,2]
[337154153,1725456751254,-754.88,0.00029589,2]
[337154154,1725456751264,-1670.02,0.00029589,2]
[337154155,1725456751274,-770.2,0.00029589,2]
[337154156,1725456751283,-1102.43,0.00029589,2]
[337154157,1725456751293,-1127.67,0.00029589,2]
[337154158,1725456751302,-1244.81,0.00029589,2]
[337154159,1725456751312,-500.0,0.00029589,2]
[337154160,1725456751322,-1739.84,0.00029589,2]
[337154161,1725456751332,-500.0,0.00029589,2]
[337154162,1725456751342,-200.0,0.00029589,2]
[337154163,1725456751352,-1099.51,0.00029589,2]
[337154164,1725456751362,-1841.76,0.00029589,2]
[337154165,1725456751373,-1011.14,0.00029589,2]
[337154166,1725456751383,-1093.15,0.00029589,2]
[337154167,1725456751393,-1756.8,0.00029589,2]
[337154168,1725456751403,-1799.48,0.00029589,2]
[337154169,1725456751414,-734.49,0.00029589,2]
[337154170,1725456751424,-500.0,0.00029589,2]
[337154171,1725456751434,-440.66,0.000296,14]
[337154172,1725456751444,-300.0,0.00029671,2]
[337154173,1725456751454,-3200.0,0.00029671,2]
[337154174,1725456751464,-150.0,0.00029671,2]
[337154175,1725456751478,-1340.72849127,0.00029724,5]
[337154176,1725456751492,-500.0,0.00029726,2]
[337154177,1725456751681,-500.0,0.00029726,2]
[337154178,1725456751691,-500.0,0.00029726,2]
[337154179,1725456751700,-1326.94,0.000298,14]
[337154180,1725456751712,-500.0,0.00029852,2]
[337154181,1725456751724,-749.82,0.00029852,2]
[337154182,1725456751734,-500.0,0.00029852,2]
[337154183,1725456751743,-500.0,0.00029852,2]
[337154184,1725456751752,-500.0,0.00029852,2]
[337154185,1725456751761,-500.0,0.00029852,2]
[337154186,1725456751780,-500.0,0.00029852,2]
[337154187,1725456751792,-500.0,0.00029852,2]
[337154188,1725456751803,-500.0,0.00029852,2]
[337154189,1725456751812,-897.69,0.00029862,2]
[337154190,1725456751822,-1356.47,0.00029862,2]
[337154191,1725456751831,-869.49,0.00029862,2]
[337154192,1725456751841,-500.0,0.00029862,2]
[337154193,1725456751851,-500.0,0.00029862,2]
[337154194,1725456751860,-500.0,0.00029862,2]
[337154195,1725456751870,-500.0,0.00029862,2]
[337154196,1725456751880,-500.0,0.00029862,2]
[337154197,1725456751890,-500.0,0.00029862,2]
[337154198,1725456751900,-500.0,0.00029862,2]
[337154199,1725456751910,-616.0,0.00029862,2]
[337154200,1725456751920,-516.34693682,0.00029862,2]
[337154201,1725456751930,-1246.01,0.00029862,2]
[337154202,1725456751941,-568.97,0.00029862,2]
[337154203,1725456751951,-560.14695992,0.00029862,2]
[337154204,1725456751961,-500.0,0.00029862,2]
[337154205,1725456751973,-268.40834838,0.00029863,2]
[337154206,1725456751983,-500.0,0.00029863,2]
[337154207,1725456751993,-2710.57,0.00029863,2]
[337154208,1725456752003,-500.0,0.00029863,2]
[337154209,1725456752013,-1541.42,0.00029863,2]
[337154210,1725456752023,-3258.81,0.00029863,2]
[337154211,1725456752032,-500.0,0.00029863,2]
[337154212,1725456752043,-1264.51,0.00029863,2]
[337154213,1725456752053,-9158.35,0.00029863,2]
[337154214,1725456752063,-500.0,0.00029863,2]
[337154215,1725456752073,-500.0,0.00029863,2]
[337154216,1725456752083,-253.48,0.00029863,2]
[337154217,1725456752093,-584.36,0.00029863,2]
[337154218,1725456752103,-500.0,0.00029863,2]
[337154219,1725456752114,-501.82733779,0.00029863,2]
[337154220,1725456752124,-542.73,0.00029863,2]
[337154221,1725456752134,-476.01,0.00029863,2]
[337154222,1725456752144,-500.0,0.00029863,2]
[337154223,1725456752155,-500.0,0.00029863,2]
[337154224,1725456752165,-500.0,0.00029863,2]
[337154225,1725456752175,-500.0,0.00029863,2]
[337154226,1725456752186,-235.82,0.00029863,2]
[337154227,1725456752198,-1675.33,0.00029863,2]
[337154228,1725456752209,-500.0,0.00029863,2]
[337154229,1725456752220,-1458.75,0.00029863,2]
[337154230,1725456752231,-500.0,0.00029863,2]
[337154231,1725456752241,-552.11,0.00029863,2]
[337154232,1725456752251,-500.0,0.00029863,2]
[337154233,1725456752261,-500.0,0.00029863,2]
[337154234,1725456752271,-500.0,0.00029863,2]
[337154235,1725456752280,-500.0,0.00029863,2]
[337154236,1725456752290,-500.0,0.00029863,2]
[337154237,1725456752300,-500.0,0.00029863,2]
[337154238,1725456752310,-500.0,0.00029863,2]
[337154239,1725456752320,-500.0,0.00029863,2]
[337154240,1725456752330,-500.0,0.00029863,2]
[337154241,1725456752340,-229.47,0.00029863,2]
[337154242,1725456752350,-500.0,0.00029863,2]
[337154243,1725456752360,-500.0,0.00029863,2]
[337154244,1725456752370,-500.0,0.00029863,2]
[337154245,1725456752386,-500.0,0.00029863,2]
[337154246,1725456752397,-500.0,0.00029863,2]
[337154247,1725456752407,-500.0,0.00029863,2]
[337154248,1725456752418,-500.0,0.00029863,2]
[337154249,1725456752428,-500.0,0.00029863,2]
[337154250,1725456752439,-500.0,0.00029863,2]
[337154251,1725456752449,-178.28,0.00029863,2]
[337154252,1725456752460,-500.0,0.00029863,2]
[337154253,1725456752474,-500.0,0.00029863,2]
[337154254,1725456752485,-500.0,0.00029863,2]
[337154255,1725456752496,-500.0,0.00029863,2]
[337154256,1725456752506,-647.85,0.00029863,2]
[337154257,1725456752517,-1094.86,0.00029863,2]
[337154258,1725456752528,-1873.82,0.00029863,2]
[337154259,1725456752539,-1197.66,0.00029863,2]
[337154260,1725456752555,-588.3,0.00029863,2]
[337154261,1725456752566,-600.56,0.00029863,2]
[337154262,1725456752577,-991.44,0.00029863,2]
[337154263,1725456752587,-1781.5,0.00029863,2]
[337154264,1725456752598,-500.0,0.00029863,2]
[337154265,1725456752608,-500.0,0.00029863,2]
[337154266,1725456752619,-4543.71,0.00029863,2]
[337154267,1725456752632,-500.0,0.00029863,2]
[337154268,1725456752643,-354.88,0.00029863,2]
[337154269,1725456752653,-500.0,0.00029863,2]
[337154270,1725456752664,-500.0,0.00029863,2]
[337154271,1725456752674,-500.0,0.00029863,2]
[337154272,1725456752687,-500.0,0.00029863,2]
[337154273,1725456752699,-500.0,0.00029863,2]
[337154274,1725456752710,-500.0,0.00029863,2]
[337154275,1725456752723,-500.0,0.00029863,2]
[337154276,1725456752733,-500.0,0.00029863,2]
[337154277,1725456752742,-500.0,0.00029863,2]
[337154278,1725456752752,-500.0,0.00029863,2]
[337154279,1725456752763,-500.0,0.00029863,2]
[337154280,1725456752773,-500.0,0.00029863,2]
[337154281,1725456752784,-500.0,0.00029863,2]
[337154282,1725456752794,-303.39253898,0.00029863,2]
[337154283,1725456752804,-500.0,0.00029863,2]
[337154284,1725456752814,-500.0,0.00029863,2]
[337154285,1725456752823,-500.0,0.00029863,2]
[337154286,1725456752833,-440.08794206,0.00029863,2]
[337154287,1725456752844,-525.77,0.00029863,2]
[337154288,1725456752854,-500.0,0.00029863,2]
[337154289,1725456752864,-193.86489005,0.00029863,2]
[337154290,1725456752874,-500.0,0.00029863,2]
[337154291,1725456752884,-500.0,0.00029863,2]
[337154292,1725456752894,-500.0,0.00029863,2]
[337154293,1725456752904,-500.0,0.00029863,2]
[337154294,1725456752915,-2721.54,0.00029863,2]
[337154295,1725456752925,-676.43,0.00029863,2]
[337154296,1725456752935,-632.09,0.00029863,2]
[337154297,1725456752945,-500.0,0.00029863,2]
[337154298,1725456752955,-500.0,0.00029863,2]
[337154299,1725456752965,-500.0,0.00029863,2]
[337154300,1725456752977,-500.0,0.00029863,2]
[337154301,1725456752987,-500.0,0.00029863,2]
[337154302,1725456752997,-500.0,0.00029863,2]
[337154303,1725456753018,-500.0,0.00029863,2]
[337154304,1725456753028,-500.0,0.00029863,2]
[337154305,1725456753038,-500.0,0.00029863,2]
[337154306,1725456753048,-500.0,0.00029863,2]
[337154307,1725456753059,-500.0,0.00029863,2]
[337154308,1725456753069,-500.0,0.00029863,2]
[337154309,1725456753080,-504.86,0.00029863,2]
[337154310,1725456753091,-604.04,0.00029863,2]
[337154311,1725456753101,-500.0,0.00029863,2]
[337154312,1725456753111,-500.0,0.00029863,2]
[337154313,1725456753122,-500.0,0.00029863,2]
[337154314,1725456753133,-500.0,0.00029863,2]
[337154315,1725456753143,-500.0,0.00029863,2]
[337154316,1725456753153,-500.0,0.00029863,2]
[337154317,1725456753163,-2611.56,0.00029863,2]
[337154318,1725456753174,-500.0,0.00029863,2]
[337154319,1725456753185,-697.13,0.00029863,2]
[337154320,1725456753195,-500.0,0.00029863,2]
[337154321,1725456753205,-500.0,0.00029863,2]
[337154322,1725456753215,-854.77,0.00029863,2]
[337154323,1725456753229,-600.81,0.00029863,2]
[337154324,1725456753239,-500.0,0.00029863,2]
[337154325,1725456753249,-749.45,0.00029863,2]
[337154326,1725456753260,-500.0,0.00029863,2]
[337154327,1725456753270,-500.0,0.00029863,2]
[337154328,1725456753280,-517.88917404,0.00029863,2]
[337154329,1725456753290,-500.0,0.00029863,2]
[337154330,1725456753300,-500.0,0.00029863,2]
[337154331,1725456753310,-500.0,0.00029863,2]
[337154332,1725456753320,-590.0,0.00029863,2]
[337154333,1725456753331,-500.0,0.00029863,2]
[337154334,1725456753340,-500.0,0.00029863,2]
[337154335,1725456753351,-500.0,0.00029863,2]
[337154336,1725456753361,-500.0,0.00029863,2]
[337154337,1725456753371,-500.0,0.00029863,2]
[337154338,1725456753381,-641.85898934,0.00029863,2]
[337154339,1725456753391,-500.0,0.00029863,2]
[337154340,1725456753401,-500.0,0.00029863,2]
[337154341,1725456753411,-510.61,0.00029863,2]
[337154342,1725456753420,-500.0,0.00029863,2]
[337154343,1725456753431,-500.0,0.00029863,2]
[337154344,1725456753441,-394.11408397,0.00029863,2]
[337154345,1725456753451,-500.0,0.00029863,2]
[337154346,1725456753460,-500.0,0.00029863,2]
[337154347,1725456753472,-500.0,0.00029863,2]
[337154348,1725456753482,-500.0,0.00029863,2]
[337154349,1725456753492,-500.0,0.00029863,2]
[337154350,1725456753501,-500.0,0.00029863,2]
[337154351,1725456753512,-371.07328448,0.00029863,2]
[337154352,1725456753522,-500.0,0.00029863,2]
[337154353,1725456753532,-500.0,0.00029863,2]
[337154354,1725456753542,-500.0,0.00029863,2]
[337154355,1725456753552,-306.24031292,0.00029863,2]